bitfinex-derivatives/quotes_ETHF0:USTF0_20250404
["timestamp","ask_amount","ask_price","bid_price","bid_amount"]
[1743791324283,7.46431,1811.6,1811.5,0.00826902]
[1743791324986,2.76126,1811.5,1810.9,7.5261]
[1743791325284,1.10473,1811.1,1811.0,1.4246]
[1743791325485,5.18473,1811.1,1811.0,2.52938]
[1743791325682,5.18473,1811.1,1811.0,1.4246]
[1743791325984,4.08,1811.1,1811.0,2.52938]
[1743791326184,5.6226,1811.1,1811.0,1.10478]
[1743791326479,6.72734,1811.1,1810.9,2.58556902]
[1743791326683,4.31258,1811.0,1810.9,0.00826902]
[1743791326981,5.85518,1811.0,1810.9,0.00826902]
[1743791327876,4.7504,1811.0,1810.9,1.11310902]
[1743791328076,5.85518,1811.0,1810.9,1.48076902]
[1743791329285,4.7504,1811.0,1810.9,2.58560902]
[1743791329480,3.2078,1811.0,1810.9,1.48076902]
[1743791329678,6.06466,1811.1,1810.9,2.58558902]
[1743791329878,6.06466,1811.1,1810.9,1.48076902]
[1743791329879,4.31258,1811.0,1810.9,1.48076902]
[1743791330076,5.82648,1811.0,1810.9,1.48076902]
[1743791330377,1.5139,1811.0,1810.9,1.11310902]
[1743791330586,2.61868,1811.0,1810.9,1.11310902]
[1743791330794,5.82648,1811.0,1810.9,0.00826902]
[1743791331794,4.7217,1811.0,1810.9,1.11310902]
[1743791332089,4.7217,1811.0,1810.9,2.56940902]
[1743791332292,1.5139,1811.0,1810.9,2.56940902]
[1743791332689,0.86786902,1811.2,1811.1,1.10472]
[1743791332989,1.11291902,1811.2,1811.1,1.10472]
[1743791333189,0.00826902,1811.2,1811.1,1.10472]
[1743791333392,3.21606902,1811.2,1811.1,1.10472]
[1743791333591,0.00826902,1811.2,1811.1,2.56102]
[1743791334295,1.11291902,1811.2,1811.1,2.56102]
[1743791334493,4.32071902,1811.2,1811.1,2.56102]
[1743791334693,4.32071902,1811.2,1811.1,1.4563]
[1743791334991,3.21606902,1811.2,1811.1,2.56102]
[1743791335191,4.32071902,1811.2,1811.1,2.56102]
[1743791335392,4.32071902,1811.2,1811.1,1.4563]
[1743791335595,4.32071902,1811.2,1811.1,2.56102]
[1743791335989,4.87351903,1811.2,1811.1,2.56102]
[1743791336182,4.32071902,1811.2,1811.1,2.56102]
[1743791336393,1.10478,1811.0,1810.9,1.11308902]
[1743791336594,1.10478,1811.0,1810.9,2.64398902]
[1743791336789,4.31258,1811.0,1810.9,2.64398902]
[1743791336989,4.7051,1811.0,1810.9,2.64398902]
[1743791337194,5.80988,1811.0,1810.9,1.53916902]
[1743791337395,10.75968,1811.0,1810.9,1.53916902]
[1743791337585,10.75968,1811.0,1810.9,0.00826902]
[1743791337889,11.59228,1811.0,1810.9,0.00826902]
[1743791338291,11.59228,1811.0,1810.9,1.11310902]
[1743791338490,7.51328,1811.0,1810.9,1.11310902]
[1743791338691,4.079,1811.0,1810.9,1.11310902]
[1743791338891,0.00826902,1811.2,1811.1,1.10472]
[1743791339297,0.00826902,1811.2,1811.1,2.51052]
[1743791342095,0.00826902,1811.2,1811.1,3.26094368]
[1743791343393,1.7522,1811.8,1811.1,3.26094368]
[1743791343394,4.96,1811.8,1811.5,1.10447]
[1743791343589,2.30500001,1811.8,1811.4,2.76132]
[1743791343799,1.10434,1811.8,1811.7,1.10432]
[1743791344000,1.10438,1811.7,1811.6,1.10436]
[1743791344199,1.10435,1811.8,1811.7,1.10432]
[1743791344400,1.10435,1811.8,1811.7,1.5151]
[1743791344401,4.31215,1811.8,1811.7,1.5151]
[1743791344601,4.86415,1811.8,1811.7,1.5151]
[1743791344901,1.1045,1811.5,1811.4,1.10452]
[1743791345100,1.10453,1811.4,1811.3,2.61965]
[1743791345399,1.10453,1811.5,1811.3,3.37128127]
[1743791345592,2.52773,1811.5,1811.4,1.5151]
[1743791345793,1.4232,1811.5,1811.4,1.5151]
[1743791345988,1.4232,1811.5,1811.4,2.61963]
[1743791346189,1.4232,1811.5,1811.4,1.5151]
[1743791346694,1.4232,1811.5,1811.4,2.61963]
[1743791347190,3.2078,1811.6,1811.5,1.10447]
[1743791347503,4.31221,1811.6,1811.5,1.4461]
[1743791347702,1.10448,1811.5,1811.3,1.10459]
[1743791347902,2.51168,1811.5,1811.3,2.55069]
[1743791348103,1.4072,1811.5,1811.4,1.10453]
[1743791348697,3.2078,1811.6,1811.5,1.10447]
[1743791349497,3.2078,1811.6,1811.4,2.55059]
[1743791349699,1.10447,1811.5,1811.4,1.4461]
[1743791349898,2.51167,1811.5,1811.4,1.4461]
[1743791352306,1.10447,1811.5,1811.4,1.4461]
[1743791353309,2.50637,1811.5,1811.4,1.4461]
[1743791355911,2.50637,1811.5,1811.4,2.55063]
[1743791356109,1.4019,1811.5,1811.4,2.55063]
[1743791356603,0.8293,1811.7,1811.6,1.10441]
[1743791356803,1.10434,1811.8,1811.7,1.10435]
[1743791357005,4.31214,1811.8,1811.7,1.10435]
[1743791357198,1.10434,1811.8,1811.7,1.10435]
[1743791357412,1.10435,1811.7,1811.6,2.60886]
[1743791357613,1.10435,1811.7,1811.6,1.5045]
[1743791357913,2.57705,1811.7,1811.6,1.5045]
[1743791358410,2.57709,1811.7,1811.6,1.10441]
[1743791358603,1.4727,1811.7,1811.4,1.5045]
[1743791358911,1.10447,1811.5,1811.4,1.10452]
[1743791359304,2.2709,1811.5,1811.3,2.52353]
[1743791359613,1.10453,1811.4,1811.3,2.52353]
[1743791359806,2.55743,1811.4,1811.3,3.27552827]
[1743791360003,4.6607,1811.4,1810.9,0.00826902]
[1743791360308,1.10478,1811.0,1810.9,0.00826902]
[1743791360608,1.10478,1811.0,1810.9,1.86529565]
[1743791360808,1.4529,1811.0,1810.9,1.86529565]
[1743791361304,3.2078,1811.1,1811.0,1.10478]
[1743791361503,1.4529,1811.3,1811.2,1.10465]
[1743791361697,1.4529,1811.3,1811.2,1.85695009]
[1743791362095,7.2828,1811.4,1811.3,1.10459]
[1743791362302,3.2078,1811.4,1811.3,3.27596893]
[1743791362911,4.31233,1811.4,1811.3,1.419]
[1743791363207,4.6428,1811.4,1811.3,1.85705569]
[1743791363507,4.6428,1811.4,1811.3,1.10459]
[1743791363702,5.74733,1811.4,1811.3,1.10459]
[1743791363904,4.6428,1811.4,1811.3,1.10459]
[1743791364105,4.6428,1811.4,1811.3,1.85708209]
[1743791364405,4.6428,1811.4,1811.3,1.857109]
[1743791364605,5.74733,1811.4,1811.3,1.857109]
[1743791364904,4.6428,1811.4,1811.3,1.857109]
[1743791365111,5.74733,1811.4,1811.3,1.857109]
[1743791365505,5.74733,1811.4,1811.3,1.10459]
[1743791366014,5.74737,1811.4,1811.3,1.10459]
[1743791366312,4.6428,1811.4,1811.3,1.8571637]
[1743791366512,3.2078,1811.4,1811.3,1.8571637]
[1743791366809,3.2078,1811.4,1811.3,1.85721168]
[1743791367410,4.31233,1811.4,1811.3,1.85721168]
[1743791367612,7.2818,1811.4,1810.9,1.11307902]
[1743791367819,3.2078,1811.0,1810.9,2.58049902]
[1743791368112,3.2078,1811.0,1810.9,3.33346613]
[1743791368510,4.6215,1811.0,1810.9,2.58049902]
[1743791368810,5.72628,1811.0,1810.9,3.33355055]
[1743791369009,4.6215,1811.0,1810.9,3.33355055]
[1743791369312,4.6215,1811.0,1810.9,2.58049902]
[1743791369510,5.72628,1811.0,1810.9,1.47566902]
[1743791369711,5.72628,1811.0,1810.9,0.00826902]
[1743791369906,4.6215,1811.0,1810.9,1.11310902]
[1743791370406,3.2078,1811.0,1810.9,1.86571763]
[1743791370612,3.2078,1811.0,1810.9,1.86572831]
[1743791370915,5.72628,1811.0,1810.9,1.11310902]
[1743791371112,4.6215,1811.0,1810.9,1.11310902]
[1743791371417,5.72628,1811.0,1810.9,1.11310902]
[1743791371617,4.6215,1811.0,1810.9,1.11310902]
[1743791372717,4.6215,1811.0,1810.9,0.00826902]
[1743791372914,5.72628,1811.0,1810.9,0.00826902]
[1743791374111,1.10498,1810.7,1810.5,1.10506]
[1743791374315,4.31278,1810.7,1810.5,1.10506]
[1743791374515,1.4171,1810.6,1810.5,1.10506]
[1743791374813,1.4171,1810.6,1810.5,2.58096]
[1743791375016,3.2078,1810.7,1810.6,1.10502]
[1743791375212,3.21606902,1810.7,1810.6,2.58092]
[1743791376110,0.00826902,1810.7,1810.6,2.58092]
[1743791376620,0.00826902,1810.7,1810.6,3.33230446]
[1743791376817,0.00826902,1810.7,1810.6,3.33231381]
[1743791377410,0.00826902,1810.7,1810.6,44.13231381]
[1743791377813,0.00826902,1810.7,1810.6,43.38092]
[1743791378731,0.00826902,1810.7,1810.6,44.13210232]
[1743791379112,0.00826902,1810.7,1810.6,43.38092]
[1743791379710,0.00826902,1810.7,1810.6,44.13204164]
[1743791380516,0.00826902,1810.7,1810.6,43.38092]
[1743791380914,0.00826902,1810.7,1810.6,44.13199746]
[1743791381116,0.00826902,1810.7,1810.6,43.38092]
[1743791381615,0.00826902,1810.7,1810.6,2.58092]
[1743791381927,0.00826902,1810.7,1810.6,43.38092]
[1743791382228,0.00826902,1810.7,1810.6,2.58092]
[1743791382713,0.00826902,1810.7,1810.6,43.38092]
[1743791382912,0.00826902,1810.7,1810.5,1.10506]
[1743791383225,0.00826902,1810.7,1810.6,1.10502]
[1743791383920,0.00826902,1810.7,1810.6,2.73824657]
[1743791384323,2.77025,1811.1,1811.0,1.10478]
[1743791385019,1.10466,1811.2,1811.0,2.76191]
[1743791385228,1.10466,1811.2,1811.1,2.53396]
[1743791385418,6.38028903,1811.3,1811.2,1.10465]
[1743791385624,5.82748902,1811.3,1811.2,1.10465]
[1743791385929,4.72286902,1811.3,1811.2,1.10465]
[1743791386420,1.51506902,1811.3,1811.2,1.10465]
[1743791386834,0.00826902,1811.3,1811.2,1.10465]
[1743791387027,0.00826902,1811.3,1811.2,2.52085]
[1743791387830,1.11285902,1811.3,1811.2,1.4162]
[1743791388031,4.32065902,1811.3,1811.2,1.10465]
[1743791388232,4.32065902,1811.3,1811.1,3.37737]
[1743791388534,1.4263,1811.2,1811.1,3.37737]
[1743791389021,3.21606902,1811.3,1811.2,1.10465]
[1743791389225,4.64236902,1811.3,1811.2,1.10465]
[1743791389430,4.64236902,1811.3,1811.2,3.27253634]
[1743791391433,4.32065902,1811.3,1811.2,3.27253634]
[1743791391637,3.21606902,1811.3,1811.2,3.27253634]
[1743791391826,0.00826902,1811.3,1811.2,3.27253634]
[1743791393335,0.00826902,1811.3,1811.2,5.77253634]
[1743791393535,0.00826902,1811.3,1811.2,50.64353634]
[1743791394236,0.00826902,1811.3,1811.2,50.6434367]
[1743791396130,0.00826902,1811.3,1811.2,50.64323362]
[1743791397437,5.18299,1811.7,1811.6,1.10441]
[1743791397637,0.8708,1811.7,1811.6,1.85560907]
[1743791397837,0.55280001,1812.0,1811.6,1.85560907]
[1743791397838,0.8293,1812.0,1811.9,1.10423]
[1743791398140,1.93347,1812.0,1811.9,1.10423]
[1743791398328,3.47747,1812.0,1811.9,1.10423]
[1743791398529,1.10423,1811.9,1811.8,2.57333902]
[1743791398727,2.64823,1811.9,1811.8,0.00826902]
[1743791398935,5.85603,1811.9,1811.8,0.00826902]
[1743791399231,1.10441,1811.6,1811.5,6.97444]
[1743791399432,5.14129,1812.0,1811.5,8.63107]
[1743791399735,5.14129,1812.0,1811.6,3.37709]
[1743791399736,4.31213,1811.8,1811.6,3.37709]
[1743791399926,1.4757,1811.7,1811.6,2.55859]
[1743791400126,2.3583,1811.7,1811.6,2.55859]
[1743791400326,0.8293,1812.0,1811.9,1.10423]
[1743791400632,4.29177,1812.0,1811.8,1.10426]
[1743791400842,3.1876,1812.0,1811.9,1.10423]
[1743791401531,1.7119,1812.0,1811.9,1.10423]
[1743791401737,6.3954,1812.0,1811.9,1.10423]
[1743791401941,7.49957,1812.0,1811.9,1.10423]
[1743791402438,7.49957,1812.0,1811.8,1.10425]
[1743791402634,4.9197,1812.0,1811.8,1.10424]
[1743791402939,6.02391,1812.0,1811.8,1.10425]
[1743791403239,4.9197,1812.0,1811.9,1.10423]
[1743791404033,0.00826902,1812.1,1812.0,1.10417]
[1743791404838,0.00826902,1812.1,1812.0,1.85327623]
[1743791405037,0.8836,1812.3,1812.2,1.10405]
[1743791405741,0.8836,1812.3,1812.2,2.55955]
[1743791406340,1.98758,1812.3,1812.2,1.10405]
[1743791406642,2.85168,1812.3,1812.1,5.17206]
[1743791406843,2.85168,1812.3,1812.2,1.10405]
[1743791407035,1.7477,1812.3,1812.2,1.10405]
[1743791407431,1.10409,1812.2,1812.0,1.10411]
[1743791407633,1.10409,1812.2,1812.1,1.10411]
[1743791407843,1.7477,1812.3,1812.2,1.10405]
[1743791408536,0.00826902,1812.4,1812.3,1.10398]
[1743791408837,0.8304,1812.7,1812.6,1.1038]
[1743791409350,0.8641,1812.8,1812.7,1.10374]
[1743791410536,3.21606902,1812.9,1812.8,1.10368]
[1743791411242,3.21606902,1812.9,1812.8,2.53418]
[1743791412240,3.2078,1813.3,1812.8,9.09918]
[1743791412544,5.4546,1813.5,1813.1,2.75875]
[1743791412740,5.4546,1813.5,1813.4,1.10331]
[1743791412741,4.9026,1813.5,1813.4,1.10331]
[1743791413046,1.6948,1813.5,1813.4,1.10331]
[1743791413939,4.19916,1813.5,1813.3,2.64543]
[1743791414139,3.0959,1813.5,1813.4,1.10331]
[1743791414849,1.6948,1813.5,1813.4,1.10331]
[1743791415140,0.00551268,1813.6,1813.5,1.10325]
[1743791415441,1.10308,1813.8,1813.6,1.10316]
[1743791415637,1.5202,1813.7,1813.6,2.50776]
[1743791416045,0.8472,1813.8,1813.7,1.10313]
[1743791416240,0.8472,1813.8,1813.7,2.50773]
[1743791416544,2.3674,1813.8,1813.7,2.50773]
[1743791416937,2.3674,1813.8,1813.7,1.4046]
[1743791417143,3.47047,1813.8,1813.6,0.00826902]
[1743791417438,1.10313,1813.7,1813.6,0.00826902]
[1743791417643,4.6529,1813.7,1813.6,0.00826902]
[1743791417845,1.4451,1813.7,1813.6,1.11145902]
[1743791418241,1.4451,1813.7,1813.6,0.00826902]
[1743791418441,1.4451,1813.7,1813.6,1.11145902]
[1743791418747,1.4451,1813.7,1813.6,0.00826902]
[1743791419049,4.6529,1813.7,1813.6,0.00826902]
[1743791419443,5.75603,1813.7,1813.6,0.00826902]
[1743791420548,4.6529,1813.7,1813.6,0.00826902]
[1743791420940,4.6529,1813.7,1813.6,1.11145902]
[1743791421143,1.4451,1813.7,1813.6,1.11145902]
[1743791421342,0.8472,1813.8,1813.7,1.10313]
[1743791421550,0.8472,1813.8,1813.7,2.51353]
[1743791421744,5.5596,1813.9,1813.8,1.10307]
[1743791421956,2.3518,1813.9,1813.8,2.51347]
[1743791422549,5.5596,1813.9,1813.7,5.16509]
[1743791422744,5.5596,1813.9,1813.7,5.4724]
[1743791422745,1.4702,1813.8,1813.7,5.4724]
[1743791422950,1.4702,1813.8,1813.6,1.11145902]
[1743791422951,3.44179,1813.8,1813.6,1.11145902]
[1743791423455,4.7091,1813.7,1813.6,0.00826902]
[1743791423657,5.81223,1813.7,1813.6,0.00826902]
[1743791424974,4.7091,1813.7,1813.6,1.11145902]
[1743791425272,5.81223,1813.7,1813.6,0.00826902]
[1743791425671,4.7091,1813.7,1813.6,1.11145902]
[1743791425873,5.81223,1813.7,1813.6,1.11145902]
[1743791426373,4.7091,1813.7,1813.6,1.11145902]
[1743791427260,3.2078,1813.7,1813.6,1.11145902]
[1743791427775,3.2078,1813.7,1813.6,2.51895902]
[1743791427968,5.78193,1813.7,1813.6,1.41576902]
[1743791428271,2.75799,1813.6,1813.0,5.87]
[1743791428471,1.10334,1813.4,1813.1,1.4075]
[1743791428668,6.6292,1813.5,1813.3,1.10338]
[1743791428971,3.2078,1813.7,1813.6,1.10319]
[1743791429474,0.00826902,1813.8,1813.7,1.10313]
[1743791429968,0.00826902,1813.8,1813.7,3.60313]
[1743791430274,1.10289,1814.1,1813.7,6.00298675]
[1743791430475,1.10295,1814.0,1813.9,1.10297]
[1743791430670,1.10307,1813.8,1813.7,1.465]
[1743791430974,1.10316,1813.7,1813.5,1.47326902]
[1743791431167,4.31099,1813.6,1813.5,1.47326902]
[1743791431367,6.04729,1813.6,1813.5,0.00826902]
[1743791433973,10.20218,1813.6,1813.2,1.10342]
[1743791434269,3.2078,1813.4,1813.3,1.10338]
[1743791436172,4.31111,1813.4,1813.3,1.10338]
[1743791436570,4.86311,1813.4,1813.3,1.10338]
[1743791436767,3.7598,1813.4,1813.2,0.00826902]
[1743791436968,3.2078,1813.4,1813.3,1.10338]
[1743791437164,4.31111,1813.4,1813.3,1.10338]
[1743791438273,4.31111,1813.4,1813.2,2.52915902]
[1743791438481,4.86311,1813.4,1813.2,2.52915902]
[1743791438773,3.2078,1813.4,1813.3,1.85341778]
[1743791438976,3.2078,1813.4,1813.3,2.61698]
[1743791439181,4.31111,1813.4,1813.3,1.5136]
[1743791439475,1.10338,1813.3,1813.2,0.00826902]
[1743791439669,1.10365,1812.9,1812.7,2.61729]
[1743791439868,1.10365,1812.9,1812.8,0.75047016]
[1743791441074,1.10368,1812.8,1812.7,0.00826902]
[1743791441278,5.18688,1812.8,1812.7,0.00826902]
[1743791441877,4.0832,1812.8,1812.7,0.00826902]
[1743791442071,5.18688,1812.8,1812.7,1.86241883]
[1743791442275,5.18688,1812.8,1812.7,0.75867883]
[1743791442477,5.18688,1812.8,1812.7,0.00826902]
[1743791442677,5.18688,1812.8,1812.7,1.86223278]
[1743791442678,4.0832,1812.8,1812.7,1.86223278]
[1743791442877,5.18688,1812.8,1812.7,0.00826902]
[1743791443075,4.0832,1812.8,1812.7,0.00826902]
[1743791443281,0.8754,1812.8,1812.7,2.55680902]
[1743791443474,4.6292,1813.0,1812.9,1.10362]
[1743791443670,3.2078,1813.0,1812.9,1.8530163]
[1743791443875,3.2078,1813.0,1812.9,1.10362]
[1743791444079,4.31139,1813.0,1812.8,4.25523]
[1743791444381,5.73268,1813.2,1813.0,1.10356]
[1743791444582,1.1035,1813.1,1812.9,2.5484]
[1743791444782,1.1035,1813.1,1813.0,1.4799]
[1743791444983,5.8187,1813.1,1813.0,1.4799]
[1743791445185,1.10368,1812.8,1812.7,0.00826902]
[1743791445383,1.10362,1812.9,1812.8,1.10367]
[1743791445583,5.5483,1813.0,1812.8,1.4799]
[1743791445780,6.65188,1813.0,1812.8,2.58353]
[1743791445977,1.10362,1812.9,1812.8,1.4799]
[1743791446180,3.4441,1813.0,1812.8,1.4799]
[1743791446477,3.2078,1813.2,1813.1,1.1035]
[1743791446873,3.2078,1813.2,1813.1,1.85260756]
[1743791447078,3.2078,1813.2,1813.1,42.65260756]
[1743791447386,3.2078,1813.2,1813.1,44.13250756]
[1743791447683,5.17556,1813.4,1813.3,1.10338]
[1743791447878,4.0722,1813.4,1813.3,1.10338]
[1743791448080,1.5247,1813.5,1813.4,1.10331]
[1743791448275,0.8644,1813.6,1813.2,8.2687]
[1743791448479,0.00826902,1813.7,1813.6,1.10319]
[1743791448678,3.2078,1814.0,1813.9,1.10301]
[1743791448879,3.2078,1814.0,1813.7,1.4531]
[1743791449081,3.2078,1814.0,1813.8,1.85138611]
[1743791449279,1.5247,1813.9,1813.8,1.10304]
[1743791449485,1.10295,1814.0,1813.9,1.10301]
[1743791449684,1.10295,1814.0,1813.9,2.55611]
[1743791449989,1.94779902,1814.1,1813.9,2.55607]
[1743791450189,3.47249902,1814.1,1813.9,2.55607]
[1743791450483,3.2078,1814.0,1813.9,1.4531]
[1743791450687,5.83545,1814.0,1813.9,1.4531]
[1743791451081,1.10301,1813.9,1813.8,0.00826902]
[1743791451287,2.58111,1813.9,1813.8,0.00826902]
[1743791452888,1.4781,1813.9,1813.8,1.11133902]
[1743791453186,2.58111,1813.9,1813.8,0.00826902]
[1743791455992,3.13311,1813.9,1813.8,0.00826902]
[1743791456188,2.58111,1813.9,1813.8,0.00826902]
[1743791456394,3.13311,1813.9,1813.8,0.00826902]
[1743791456589,5.63311,1813.9,1813.8,0.00826902]
[1743791456992,3.13311,1813.9,1813.8,0.00826902]
[1743791458288,1.10331,1813.4,1813.3,1.10333]
[1743791458595,1.10328,1813.5,1813.4,1.10331]
[1743791458988,1.4385,1813.5,1813.4,1.10331]
[1743791459292,2.54178,1813.5,1813.3,1.4794]
[1743791459495,2.54178,1813.5,1813.3,2.59099902]
[1743791459695,2.54178,1813.5,1813.4,1.10331]
[1743791459891,2.54178,1813.5,1813.4,2.58271]
[1743791460087,1.4385,1813.5,1813.4,2.58271]
[1743791460294,2.54175,1813.5,1813.4,1.4794]
[1743791460594,3.2078,1813.6,1813.4,1.4794]
[1743791460789,3.2078,1813.6,1813.5,1.10325]
[1743791460990,4.31099,1813.6,1813.5,1.10325]
[1743791461191,4.31099,1813.6,1813.5,2.56755]
[1743791461391,3.2563,1813.7,1813.6,1.10319]
[1743791461587,3.2078,1813.8,1813.7,1.10313]
[1743791462094,3.2078,1813.8,1813.7,1.94413]
[1743791462489,3.2078,1813.8,1813.7,2.69265375]
[1743791462692,1.10295,1814.0,1813.9,1.10296]
[1743791462891,1.10301,1813.9,1813.8,6.62134]
[1743791463101,1.5394,1814.0,1813.9,1.10301]
[1743791463292,2.64238,1814.0,1813.9,1.5026]
[1743791463592,1.10313,1813.8,1813.6,4.054]
[1743791463800,1.10313,1813.8,1813.7,1.5026]
[1743791464001,2.75784,1813.7,1813.3,0.00826902]
[1743791464196,1.10329,1813.5,1813.3,1.11159902]
[1743791464394,1.10331,1813.4,1813.3,1.51086902]
[1743791464601,4.31111,1813.4,1813.3,2.61424902]
[1743791464895,3.413,1813.5,1813.3,2.61424902]
[1743791465088,1.4347,1813.4,1813.3,2.61422902]
[1743791465798,0.875,1813.5,1813.4,1.10331]
[1743791465993,3.2078,1813.6,1813.5,1.10325]
[1743791466194,4.967,1813.8,1813.7,1.10313]
[1743791466798,6.4265,1813.8,1813.7,1.10313]
[1743791467000,7.52962,1813.8,1813.6,2.63115]
[1743791467197,4.092,1813.8,1813.7,1.10313]
[1743791467402,3.2078,1813.8,1813.7,2.63113]
[1743791467700,4.31087,1813.8,1813.7,2.63113]
[1743791467891,4.31087,1813.8,1813.7,1.528]
[1743791468297,3.2078,1813.8,1813.7,2.63113]
[1743791468699,6.63800902,1814.1,1813.9,1.10297]
[1743791468898,1.10295,1814.0,1813.9,1.10297]
[1743791469104,1.10295,1814.0,1813.9,1.528]
[1743791469402,2.51655,1814.0,1813.9,1.528]
[1743791469704,1.4136,1814.0,1813.5,7.6371]
[1743791469905,1.10308,1813.8,1813.7,1.1031]
[1743791470093,1.4136,1813.9,1813.8,1.10307]
[1743791470299,4.07556902,1814.1,1813.9,1.10296]
[1743791470598,6.59208902,1814.1,1813.9,1.10296]
[1743791471005,1.10295,1814.0,1813.9,1.10296]
[1743791471194,1.4136,1814.0,1813.9,1.10296]
[1743791471393,4.07556902,1814.1,1814.0,1.10295]
[1743791471599,4.07556902,1814.1,1813.5,1.6551]
[1743791471600,5.51476,1814.0,1813.5,1.6551]
[1743791471898,3.2078,1813.6,1813.5,1.93235]
[1743791472102,5.72442,1813.9,1813.8,1.10307]
[1743791472298,4.6214,1813.9,1813.8,1.10307]
[1743791472503,3.2078,1813.9,1813.8,1.10307]
[1743791472703,2.53095,1814.0,1813.9,1.10301]
[1743791472904,1.428,1814.0,1813.9,1.10301]
[1743791473296,1.10303,1813.9,1813.7,0.8354]
[1743791473501,4.31083,1813.9,1813.8,1.10307]
[1743791473702,2.53101,1814.0,1813.9,1.10301]
[1743791474008,2.53101,1814.0,1813.7,0.8354]
[1743791474200,2.53101,1814.0,1813.7,3.59322]
[1743791474510,1.428,1814.0,1813.9,1.10301]
[1743791475407,2.53095,1814.0,1813.9,1.10301]
[1743791475597,2.53095,1814.0,1813.7,3.59324]
[1743791475598,2.53095,1814.0,1813.8,1.10303]
[1743791475910,3.2078,1813.9,1813.8,1.10303]
[1743791476105,4.7378,1813.9,1813.8,1.10303]
[1743791476511,4.7378,1813.9,1813.8,1.85453767]
[1743791476703,4.7378,1813.9,1813.8,1.85456005]
[1743791476899,2.63301,1813.9,1813.8,1.85456005]
[1743791477105,5.84081,1813.9,1813.8,1.10303]
[1743791477300,4.7378,1813.9,1813.8,1.10303]
[1743791477507,4.31081,1813.9,1813.8,0.75157581]
[1743791477702,1.10331,1813.5,1813.3,1.11160902]
[1743791477897,1.10331,1813.5,1813.4,0.75186205]
[1743791478101,3.2078,1813.6,1813.4,1.10327]
[1743791478102,5.5405,1813.6,1813.4,1.10327]
[1743791478299,6.64374,1813.6,1813.5,1.10325]
[1743791478504,2.3327,1813.6,1813.5,1.85510913]
[1743791478703,0.8303,1813.8,1813.5,0.75185913]
[1743791478897,0.8303,1813.8,1813.6,2.68899913]
[1743791479105,4.31093,1813.7,1813.6,0.834]
[1743791479412,4.31093,1813.7,1813.6,1.10319]
[1743791479611,4.31093,1813.7,1813.5,5.15421]
[1743791479809,5.80073,1813.7,1813.5,5.15421]
[1743791480109,4.6976,1813.7,1813.5,5.15421]
[1743791480310,4.6976,1813.7,1813.5,4.051]
[1743791480615,4.6976,1813.7,1813.4,2.81187]
[1743791480806,3.2078,1813.5,1813.3,4.05926902]
[1743791481010,2.59311,1813.4,1813.3,5.16262902]
[1743791481212,2.59311,1813.4,1813.3,4.81126644]
[1743791481408,3.44041,1813.4,1813.3,0.00826902]
[1743791488212,1.10365,1812.9,1812.7,6.87878]
[1743791488412,4.31141,1813.0,1812.8,2.61058]
[1743791488812,3.2078,1813.0,1812.9,1.10362]
[1743791489013,4.6656,1813.0,1812.9,2.61052]
[1743791489311,0.00826902,1813.1,1812.9,2.25704842]
[1743791489517,0.00826902,1813.1,1813.0,2.61046]
[1743791490313,0.00826902,1813.1,1813.0,3.36046588]
[1743791490514,0.00826902,1813.1,1813.0,2.61046]
[1743791491026,1.11176902,1813.1,1813.0,1.5069]
[1743791491323,1.10362,1812.9,1812.8,0.00826902]
[1743791491513,4.31142,1812.9,1812.8,1.49676902]
[1743791491916,6.71982,1812.9,1812.8,1.49676902]
[1743791492312,5.6162,1812.9,1812.8,2.60044902]
[1743791492915,1.11180902,1813.1,1812.8,2.60044902]
[1743791492916,4.31960902,1813.1,1813.0,1.10356]
[1743791493219,3.21606902,1813.1,1813.0,1.10356]
[1743791493721,0.00826902,1813.1,1813.0,1.10356]
[1743791494421,4.31956902,1813.1,1812.9,1.4885]
[1743791494616,5.86336902,1813.1,1813.0,1.10356]
[1743791494818,1.10356,1813.0,1812.9,2.59207]
[1743791495016,1.10356,1813.0,1812.9,1.4885]
[1743791495213,1.10362,1812.9,1812.8,0.00826902]
[1743791495416,5.97672,1812.9,1812.8,0.00826902]
[1743791495622,6.52872,1812.9,1812.8,0.00826902]
[1743791495921,5.97672,1812.9,1812.8,0.00826902]
[1743791496423,6.52872,1812.9,1812.8,0.00826902]
[1743791497311,6.52872,1812.9,1812.8,1.47516902]
[1743791497513,6.52872,1812.9,1812.4,3.63695]
[1743791497514,1.10386,1812.5,1812.4,0.8772]
[1743791497715,3.2078,1812.5,1812.1,0.8863]
[1743791498024,1.10411,1812.1,1811.9,6.97421]
[1743791498327,1.10411,1812.1,1811.9,1.10421]
[1743791498328,4.31191,1812.1,1811.9,1.10421]
[1743791498518,1.10417,1812.0,1811.8,1.10425]
[1743791498719,4.31203,1811.9,1811.8,0.00826902]
[1743791499019,5.81923,1811.9,1811.8,0.00826902]
[1743791499217,8.31923,1811.9,1811.8,0.00826902]
[1743791499417,1.10447,1811.5,1811.4,8.29500331]
[1743791499620,4.31227,1811.5,1811.4,8.29500331]
[1743791500825,1.10453,1811.4,1811.3,12.24347337]
[1743791501030,3.38943,1811.4,1811.3,12.24347337]
[1743791501330,5.88943,1811.4,1811.3,12.24347337]
[1743791502334,5.88943,1811.4,1811.3,0.00826902]
[1743791503226,1.1049,1810.8,1810.7,1.4881]
[1743791503427,4.3127,1810.8,1810.7,1.4881]
[1743791504118,3.2078,1810.8,1810.7,1.4881]
[1743791504318,4.3127,1810.8,1810.7,1.4881]
[1743791504518,5.8288,1810.8,1810.7,1.4881]
[1743791504719,5.8288,1810.8,1810.6,0.00551268]
[1743791505021,5.82884,1810.8,1810.6,1.41231268]
[1743791505222,1.10496,1810.7,1810.6,1.41231268]
[1743791505419,2.62106,1810.7,1810.6,0.00551268]
[1743791505923,5.12106,1810.7,1810.6,0.00551268]